fUSD/lending_fUSD_20260612
["ID","MTS","AMOUNT","RATE_DAILY","PERIOD"]
[424914143,1781268650000,-7946.79,0.00028533,7]
[424914142,1781268650000,-7949.64,0.00028533,7]
[424914146,1781268650000,-502.78,0.00028571,2]
[424914145,1781268650000,-185.1,0.00028569,2]
[424914153,1781268650000,-275.998249,0.00028657,7]
[424914123,1781268650000,-7949.64,0.00028373,30]
[424914137,1781268650000,-614.22,0.00028516,30]
[424914120,1781268650000,-612.34,0.00028355,2]
[424914097,1781268650000,-1046.67,0.00028053,7]
[424914117,1781268650000,-1305.7,0.00028267,2]
[424914149,1781268650000,-899441.4105469,0.00028657,2]
[424914096,1781268650000,-300.53,0.00028038,7]
[424914095,1781268650000,-612.34,0.00028033,30]
[424914099,1781268650000,-7949.64,0.00028053,7]
[424914098,1781268650000,-1033.54,0.00028053,7]
[424914101,1781268650000,-300.53,0.00028068,30]
[424914108,1781268650000,-613.45,0.00028194,7]
[424914109,1781268650000,-612.34,0.00028194,7]
[424914100,1781268650000,-7946.79,0.00028053,7]
[424914102,1781268650000,-3049.32,0.00028096,120]
[424914110,1781268650000,-1046.67,0.00028213,2]
[424914121,1781268650000,-1046.67,0.00028373,30]
[424914106,1781268650000,-300.66,0.0002813,7]
[424914105,1781268650000,-316.05,0.0002813,7]
[424914104,1781268650000,-2323.0,0.0002812,3]
[424914107,1781268650000,-502.78,0.0002818,2]
[424914112,1781268650000,-7949.64,0.00028213,2]
[424914119,1781268650000,-613.45,0.00028355,2]
[424914111,1781268650000,-1033.54,0.00028213,2]
[424914113,1781268650000,-7946.79,0.00028213,2]
[424914115,1781268650000,-505.48364925,0.00028256,60]
[424914118,1781268650000,-10309.4438,0.00028305,2]
[424914116,1781268650000,-500.0,0.00028256,60]
[424914114,1781268650000,-500.0,0.00028256,60]
[424914103,1781268650000,-300.53,0.00028099,2]
[424914154,1781268650000,-275.998249,0.00028657,7]
[424914144,1781268650000,-361.0,0.00028552,10]
[424914150,1781268650000,-11862.6571249,0.00028657,2]
[424914181,1781268650000,-155.002431,0.00028657,7]
[424914179,1781268650000,-1191.476515,0.00028657,7]
[424914178,1781268650000,-1191.476515,0.00028657,7]
[424914182,1781268650000,-1191.476515,0.00028657,7]
[424914184,1781268650000,-155.002431,0.00028657,7]
[424914186,1781268650000,-4347.553885,0.00028657,7]
[424914187,1781268650000,-4347.553885,0.00028657,7]
[424914185,1781268650000,-4347.553885,0.00028657,7]
[424914191,1781268650000,-151.0,0.00028657,7]
[424914195,1781268650000,-154.009562,0.00028657,7]
[424914193,1781268650000,-154.009562,0.00028657,7]
[424914199,1781268650000,-323.692474,0.00028657,7]
[424914192,1781268650000,-154.009562,0.00028657,7]
[424914189,1781268650000,-151.0,0.00028657,7]
[424914190,1781268650000,-151.0,0.00028657,7]
[424914188,1781268650000,-4347.553885,0.00028657,7]
[424914196,1781268650000,-323.692474,0.00028657,7]
[424914194,1781268650000,-323.692474,0.00028657,7]
[424914197,1781268650000,-962.386408,0.00028657,7]
[424914200,1781268650000,-962.386408,0.00028657,7]
[424914202,1781268650000,-962.386408,0.00028657,7]
[424914203,1781268650000,-962.386408,0.00028657,7]
[424914205,1781268650000,-151.0,0.00028657,7]
[424914201,1781268650000,-323.692474,0.00028657,7]
[424914147,1781268650000,-151.0,0.00028622,2]
[424914183,1781268650000,-155.002431,0.00028657,7]
[424914177,1781268650000,-155.002431,0.00028657,7]
[424914198,1781268650000,-154.009562,0.00028657,7]
[424914173,1781268650000,-485.361361,0.00028657,7]
[424914180,1781268650000,-1191.476515,0.00028657,7]
[424914148,1781268650000,-151.0,0.00028638,2]
[424914152,1781268650000,-275.998249,0.00028657,7]
[424914151,1781268650000,-275.998249,0.00028657,7]
[424914155,1781268650000,-151.0,0.00028657,7]
[424914157,1781268650000,-168.449244,0.00028657,7]
[424914204,1781268650000,-151.0,0.00028657,7]
[424914159,1781268650000,-168.449244,0.00028657,7]
[424914156,1781268650000,-168.449244,0.00028657,7]
[424914161,1781268650000,-151.0,0.00028657,7]
[424914162,1781268650000,-151.0,0.00028657,7]
[424914165,1781268650000,-151.0,0.00028657,7]
[424914158,1781268650000,-168.449244,0.00028657,7]
[424914163,1781268650000,-151.0,0.00028657,7]
[424914169,1781268650000,-388.19877,0.00028657,7]
[424914164,1781268650000,-151.0,0.00028657,7]
[424914174,1781268650000,-485.361361,0.00028657,7]
[424914170,1781268650000,-151.0,0.00028657,7]
[424914171,1781268650000,-485.361361,0.00028657,7]
[424914168,1781268650000,-388.19877,0.00028657,7]
[424914172,1781268650000,-485.361361,0.00028657,7]
[424914166,1781268650000,-388.19877,0.00028657,7]
[424914176,1781268650000,-250.14377,0.00028657,2]
[424914167,1781268650000,-388.19877,0.00028657,7]
[424914160,1781268650000,-151.0,0.00028657,7]
[424914175,1781268650000,-151.0,0.00028657,2]
[424914229,1781268651000,-2000.0,0.0002871,2]
[424914230,1781268651000,-2000.0,0.0002871,2]
[424914228,1781268651000,-2000.0,0.0002871,2]
[424914227,1781268651000,-2000.0,0.0002871,2]
[424914225,1781268651000,-363.58735544,0.000287,2]
[424914233,1781268651000,-2000.0,0.0002871,2]
[424914232,1781268651000,-2000.0,0.0002871,2]
[424914231,1781268651000,-2000.0,0.0002871,2]
[424914234,1781268651000,-1000.0,0.0002871,2]
[424914240,1781268651000,-502.78,0.00028767,2]
[424914239,1781268651000,-178.7270565,0.00028765,2]
[424914243,1781268651000,-3780.29927002,0.000288,2]
[424914241,1781268651000,-418.0,0.00028772,2]
[424914242,1781268651000,-3780.29927003,0.000288,2]
[424914226,1781268651000,-2000.0,0.0002871,2]
[424914244,1781268651000,-3780.29927002,0.000288,2]
[424914235,1781268651000,-341.29761296,0.00028752,7]
[424914224,1781268651000,-363.58735544,0.000287,2]
[424914209,1781268651000,-418.555814,0.00028657,7]
[424914219,1781268651000,-1033.54,0.00028693,2]
[424914237,1781268651000,-369.62957029,0.00028758,7]
[424914206,1781268651000,-418.555814,0.00028657,7]
[424914210,1781268651000,-794.067464,0.00028657,7]
[424914208,1781268651000,-418.555814,0.00028657,7]
[424914207,1781268651000,-418.555814,0.00028657,7]
[424914211,1781268651000,-794.067464,0.00028657,7]
[424914213,1781268651000,-151.0,0.00028657,7]
[424914220,1781268651000,-184.39423598,0.000287,2]
[424914212,1781268651000,-794.067464,0.00028657,7]
[424914214,1781268651000,-794.067464,0.00028657,7]
[424914215,1781268651000,-234.844936,0.00028657,7]
[424914222,1781268651000,-184.39423597,0.000287,2]
[424914217,1781268651000,-418.0,0.00028681,2]
[424914218,1781268651000,-1046.67,0.00028693,2]
[424914221,1781268651000,-184.39423597,0.000287,2]
[424914216,1781268651000,-3049.32,0.00028671,120]
[424914223,1781268651000,-363.58735547,0.000287,2]
[424914238,1781268651000,-171.2824986,0.00028764,7]
[424914245,1781268651000,-418.0,0.0002881,2]
[424914271,1781268651000,-363.91692931,0.00028893,7]
[424914265,1781268651000,-205.40958195,0.00028893,7]
[424914266,1781268651000,-173.69094567,0.00028893,7]
[424914269,1781268651000,-424.33448731,0.00028893,7]
[424914272,1781268651000,-340.97356577,0.00028893,7]
[424914276,1781268651000,-329.42825038,0.00028893,7]
[424914275,1781268651000,-321.97989999,0.00028893,7]
[424914278,1781268651000,-356.23469977,0.00028893,7]
[424914268,1781268651000,-246.96180212,0.00028893,5]
[424914274,1781268651000,-397.11222778,0.00028893,7]
[424914270,1781268651000,-394.65579691,0.00028893,7]
[424914273,1781268651000,-373.73840198,0.00028893,7]
[424914277,1781268651000,-370.25599632,0.00028893,7]
[424914289,1781268651000,-320.81258203,0.00028893,7]
[424914281,1781268651000,-349.02101273,0.00028893,7]
[424914236,1781268651000,-410.87040165,0.00028752,7]
[424914261,1781268651000,-248.21960329,0.00028893,7]
[424914262,1781268651000,-374.09154259,0.00028893,7]
[424914279,1781268651000,-343.64888301,0.00028893,7]
[424914258,1781268651000,-241.38122444,0.00028883,7]
[424914246,1781268651000,-500.0,0.00028855,2]
[424914248,1781268651000,-150.0,0.00028855,2]
[424914247,1781268651000,-150.0,0.00028855,2]
[424914251,1781268651000,-1033.59,0.00028855,30]
[424914263,1781268651000,-330.86231833,0.00028893,5]
[424914249,1781268651000,-1363.81,0.00028855,30]
[424914252,1781268651000,-328.50902966,0.00028883,7]
[424914250,1781268651000,-1046.76,0.00028855,30]
[424914255,1781268651000,-172.79418527,0.00028883,7]
[424914254,1781268651000,-194.78574513,0.00028883,7]
[424914264,1781268651000,-226.34276476,0.00028893,7]
[424914253,1781268651000,-347.33749636,0.00028883,2]
[424914260,1781268651000,-369.32256479,0.00028893,7]
[424914259,1781268651000,-211.66780893,0.00028883,7]
[424914290,1781268651000,-491.59434058,0.00028893,7]
[424914267,1781268651000,-220.51711721,0.00028893,7]
[424914257,1781268651000,-168.57577832,0.00028883,7]
[424914256,1781268651000,-327.54354158,0.00028883,7]
[424914353,1781268652000,-200.0,0.00029,2]
[424914342,1781268652000,-200.0,0.00029,2]
[424914339,1781268652000,-8686.0,0.00029,120]
[424914350,1781268652000,-200.0,0.00029,2]
[424914352,1781268652000,-200.0,0.00029,2]
[424914351,1781268652000,-200.0,0.00029,2]
[424914349,1781268652000,-200.0,0.00029,2]
[424914348,1781268652000,-200.0,0.00029,2]
[424914355,1781268652000,-500.0,0.00029,2]
[424914356,1781268652000,-500.0,0.00029,2]
[424914347,1781268652000,-200.0,0.00029,2]
[424914367,1781268652000,-500.0,0.00029,2]
[424914357,1781268652000,-200.0,0.00029,2]
[424914365,1781268652000,-500.0,0.00029,2]
[424914364,1781268652000,-500.0,0.00029,2]
[424914358,1781268652000,-500.0,0.00029,2]
[424914362,1781268652000,-500.0,0.00029,2]
[424914360,1781268652000,-500.0,0.00029,2]
[424914359,1781268652000,-217.22,0.00029,2]
[424914361,1781268652000,-500.0,0.00029,2]
[424914363,1781268652000,-500.0,0.00029,2]
[424914366,1781268652000,-500.0,0.00029,2]
[424914340,1781268652000,-1500.0,0.00029,2]
[424914354,1781268652000,-200.0,0.00029,2]
[424914341,1781268652000,-200.0,0.00029,2]
[424914324,1781268652000,-502.78,0.00028963,2]
[424914345,1781268652000,-200.0,0.00029,2]
[424914319,1781268652000,-341.36004175,0.00028909,7]
[424914317,1781268652000,-344.45449047,0.00028909,7]
[424914320,1781268652000,-418.0,0.00028919,2]
[424914318,1781268652000,-302.89107741,0.00028909,7]
[424914321,1781268652000,-418.0,0.00028942,2]
[424914322,1781268652000,-491.0,0.00028946,2]
[424914323,1781268652000,-279.53545594,0.00028952,2]
[424914325,1781268652000,-179.97120455,0.00028971,2]
[424914326,1781268652000,-175.68,0.00028973,120]
[424914332,1781268652000,-1466645.80517884,0.00029,2]
[424914328,1781268652000,-151.0,0.00028997,7]
[424914329,1781268652000,-151.0,0.00028997,7]
[424914330,1781268652000,-279.15908737,0.00028999,15]
[424914327,1781268652000,-1096.64692462,0.0002899,2]
[424914334,1781268652000,-761.33308942,0.00029,2]
[424914333,1781268652000,-5498.11489154,0.00029,120]
[424914331,1781268652000,-123455.01064967,0.00029,7]
[424914335,1781268652000,-5483.353385,0.00029,2]
[424914344,1781268652000,-200.0,0.00029,2]
[424914336,1781268652000,-10000.0,0.00029,2]
[424914343,1781268652000,-200.0,0.00029,2]
[424914346,1781268652000,-200.0,0.00029,2]
[424914337,1781268652000,-2902.62,0.00029,2]
[424914338,1781268652000,-9479.32276112,0.00029,2]
[424914368,1781268652000,-500.0,0.00029,2]
[424914410,1781268652000,-275.998249,0.00029,7]
[424914376,1781268652000,-500.0,0.00029,2]
[424914398,1781268652000,-160.81,0.00029,2]
[424914397,1781268652000,-160.81,0.00029,2]
[424914399,1781268652000,-160.81,0.00029,2]
[424914401,1781268652000,-160.81,0.00029,2]
[424914402,1781268652000,-20000.0,0.00029,2]
[424914403,1781268652000,-1001.69719294,0.00029,2]
[424914405,1781268652000,-511.71486639,0.00029,2]
[424914404,1781268652000,-219.92684846,0.00029,2]
[424914406,1781268652000,-5223.23106425,0.00029,2]
[424914408,1781268652000,-160.0,0.00029,20]
[424914409,1781268652000,-275.998249,0.00029,7]
[424914407,1781268652000,-10000.0,0.00029,2]
[424914412,1781268652000,-275.998249,0.00029,7]
[424914411,1781268652000,-275.998249,0.00029,7]
[424914417,1781268652000,-168.449244,0.00029,7]
[424914413,1781268652000,-151.0,0.00029,7]
[424914419,1781268652000,-151.0,0.00029,7]
[424914416,1781268652000,-168.449244,0.00029,7]
[424914414,1781268652000,-168.449244,0.00029,7]
[424914415,1781268652000,-168.449244,0.00029,7]
[424914418,1781268652000,-151.0,0.00029,7]
[424914421,1781268652000,-151.0,0.00029,7]
[424914374,1781268652000,-500.0,0.00029,2]
[424914400,1781268652000,-160.81,0.00029,2]
[424914394,1781268652000,-160.81,0.00029,2]
[424914420,1781268652000,-151.0,0.00029,7]
[424914393,1781268652000,-160.81,0.00029,2]
[424914371,1781268652000,-500.0,0.00029,2]
[424914375,1781268652000,-500.0,0.00029,2]
[424914373,1781268652000,-500.0,0.00029,2]
[424914369,1781268652000,-500.0,0.00029,2]
[424914370,1781268652000,-500.0,0.00029,2]
[424914372,1781268652000,-500.0,0.00029,2]
[424914396,1781268652000,-160.81,0.00029,2]
[424914377,1781268652000,-500.0,0.00029,2]
[424914379,1781268652000,-500.0,0.00029,2]
[424914380,1781268652000,-500.0,0.00029,2]
[424914388,1781268652000,-1550.68667274,0.00029,2]
[424914378,1781268652000,-500.0,0.00029,2]
[424914382,1781268652000,-500.0,0.00029,2]
[424914381,1781268652000,-500.0,0.00029,2]
[424914395,1781268652000,-160.81,0.00029,2]
[424914392,1781268652000,-160.81,0.00029,2]
[424914391,1781268652000,-160.81,0.00029,2]
[424914389,1781268652000,-166.52646089,0.00029,2]
[424914390,1781268652000,-227.5087134,0.00029,2]
[424914383,1781268652000,-500.0,0.00029,2]
[424914387,1781268652000,-330.03,0.00029,2]
[424914385,1781268652000,-500.0,0.00029,2]
[424914384,1781268652000,-500.0,0.00029,2]
[424914386,1781268652000,-500.0,0.00029,2]
[424914445,1781268653000,-4347.553885,0.00029,7]
[424914443,1781268653000,-4347.553885,0.00029,7]
[424914447,1781268653000,-151.0,0.00029,7]
[424914449,1781268653000,-154.009562,0.00029,7]
[424914453,1781268653000,-154.009562,0.00029,7]
[424914452,1781268653000,-323.692474,0.00029,7]
[424914456,1781268653000,-962.386408,0.00029,7]
[424914454,1781268653000,-323.692474,0.00029,7]
[424914458,1781268653000,-323.692474,0.00029,7]
[424914455,1781268653000,-500.0,0.00029,2]
[424914469,1781268653000,-794.067464,0.00029,7]
[424914459,1781268653000,-962.386408,0.00029,7]
[424914457,1781268653000,-154.009562,0.00029,7]
[424914460,1781268653000,-323.692474,0.00029,7]
[424914461,1781268653000,-962.386408,0.00029,7]
[424914463,1781268653000,-151.0,0.00029,7]
[424914472,1781268653000,-151.0,0.00029,7]
[424914464,1781268653000,-151.0,0.00029,7]
[424914470,1781268653000,-794.067464,0.00029,7]
[424914466,1781268653000,-418.555814,0.00029,7]
[424914465,1781268653000,-418.555814,0.00029,7]
[424914450,1781268653000,-195.042,0.00029,20]
[424914462,1781268653000,-962.386408,0.00029,7]
[424914446,1781268653000,-261.73725,0.00029,7]
[424914437,1781268653000,-1191.476515,0.00029,7]
[424914451,1781268653000,-154.009562,0.00029,7]
[424914468,1781268653000,-418.555814,0.00029,7]
[424914422,1781268653000,-151.0,0.00029,7]
[424914424,1781268653000,-388.19877,0.00029,7]
[424914425,1781268653000,-388.19877,0.00029,7]
[424914423,1781268653000,-151.0,0.00029,7]
[424914427,1781268653000,-388.19877,0.00029,7]
[424914428,1781268653000,-500.0,0.00029,2]
[424914426,1781268653000,-388.19877,0.00029,7]
[424914429,1781268653000,-151.0,0.00029,7]
[424914431,1781268653000,-485.361361,0.00029,7]
[424914444,1781268653000,-4347.553885,0.00029,7]
[424914430,1781268653000,-485.361361,0.00029,7]
[424914433,1781268653000,-485.361361,0.00029,7]
[424914435,1781268653000,-1191.476515,0.00029,7]
[424914436,1781268653000,-1191.476515,0.00029,7]
[424914439,1781268653000,-1191.476515,0.00029,7]
[424914434,1781268653000,-155.002431,0.00029,7]
[424914438,1781268653000,-155.002431,0.00029,7]
[424914440,1781268653000,-155.002431,0.00029,7]
[424914441,1781268653000,-155.002431,0.00029,7]
[424914442,1781268653000,-4347.553885,0.00029,7]
[424914448,1781268653000,-151.0,0.00029,7]
[424914432,1781268653000,-485.361361,0.00029,7]
[424914471,1781268653000,-794.067464,0.00029,7]
[424914522,1781268653000,-342.56499721,0.00029629,7]
[424914474,1781268653000,-500.0,0.00029078,60]
[424914502,1781268653000,-2000.0,0.0002929,2]
[424914499,1781268653000,-1846.9,0.0002929,2]
[424914503,1781268653000,-2000.0,0.0002929,2]
[424914504,1781268653000,-2000.0,0.0002929,2]
[424914506,1781268653000,-8660.0,0.00029329,10]
[424914505,1781268653000,-369.87,0.0002929,2]
[424914507,1781268653000,-502.78,0.00029354,2]
[424914510,1781268653000,-151.0,0.0002946,2]
[424914512,1781268653000,-1500.0,0.000295,2]
[424914511,1781268653000,-151.0,0.00029486,2]
[424914497,1781268653000,-2000.0,0.0002929,2]
[424914508,1781268653000,-150.0,0.00029372,2]
[424914516,1781268653000,-150.0,0.00029589,2]
[424914513,1781268653000,-1500.0,0.000295,2]
[424914514,1781268653000,-502.78,0.0002955,2]
[424914517,1781268653000,-150.0,0.00029589,2]
[424914515,1781268653000,-150.0,0.00029589,2]
[424914519,1781268653000,-511.94641944,0.00029616,7]
[424914523,1781268653000,-2026.35,0.00029654,2]
[424914521,1781268653000,-554.44435543,0.00029622,7]
[424914520,1781268653000,-616.30560248,0.00029616,7]
[424914467,1781268653000,-418.555814,0.00029,7]
[424914509,1781268653000,-291.0,0.00029406,2]
[424914500,1781268653000,-2677.5,0.0002929,2]
[424914518,1781268653000,-150.0,0.00029589,2]
[424914498,1781268653000,-2000.0,0.0002929,2]
[424914473,1781268653000,-794.067464,0.00029,7]
[424914475,1781268653000,-322.33,0.000291,7]
[424914476,1781268653000,-403.75,0.000291,2]
[424914477,1781268653000,-601.17,0.000291,2]
[424914482,1781268653000,-396.0,0.0002922,30]
[424914478,1781268653000,-601.17,0.000291,2]
[424914501,1781268653000,-2000.0,0.0002929,2]
[424914479,1781268653000,-2325.0,0.00029124,3]
[424914480,1781268653000,-502.78,0.00029159,2]
[424914484,1781268653000,-265.0,0.0002922,30]
[424914483,1781268653000,-319.0,0.0002922,30]
[424914481,1781268653000,-290.0,0.0002922,30]
[424914487,1781268653000,-417.0,0.0002922,30]
[424914486,1781268653000,-155.0,0.0002922,30]
[424914488,1781268653000,-256.0,0.0002922,30]
[424914490,1781268653000,-258.0,0.0002922,30]
[424914493,1781268653000,-3000.0,0.0002929,2]
[424914491,1781268653000,-1936.0,0.0002922,30]
[424914489,1781268653000,-849.0,0.0002922,30]
[424914492,1781268653000,-3049.32,0.00029247,120]
[424914494,1781268653000,-150.0,0.0002929,2]
[424914495,1781268653000,-2000.0,0.0002929,2]
[424914485,1781268653000,-558.0,0.0002922,30]
[424914496,1781268653000,-2000.0,0.0002929,2]
[424914561,1781268654000,-560.60760296,0.00029761,7]
[424914554,1781268654000,-493.92360425,0.00029761,5]
[424914562,1781268654000,-595.66834166,0.00029761,7]
[424914555,1781268654000,-229.20662537,0.00029761,7]
[424914549,1781268654000,-496.2934775,0.00029761,5]
[424914553,1781268654000,-441.03423443,0.00029761,7]
[424914552,1781268654000,-347.38189134,0.00029761,7]
[424914550,1781268654000,-452.68552951,0.00029761,7]
[424914560,1781268654000,-511.46034866,0.00029761,7]
[424914551,1781268654000,-410.8191639,0.00029761,7]
[424914571,1781268654000,-523.53151909,0.00029761,7]
[424914557,1781268654000,-545.87539396,0.00029761,7]
[424914558,1781268654000,-239.49646641,0.00029761,7]
[424914559,1781268654000,-226.49538561,0.00029761,7]
[424914563,1781268654000,-212.05884244,0.00029761,7]
[424914565,1781268654000,-494.14237556,0.00029761,7]
[424914572,1781268654000,-570.25565253,0.00029761,7]
[424914569,1781268654000,-598.06003495,0.00029761,7]
[424914564,1781268654000,-482.96984998,0.00029761,7]
[424914567,1781268654000,-534.35204966,0.00029761,7]
[424914545,1781268654000,-553.98384718,0.00029761,7]
[424914556,1781268654000,-591.98369537,0.00029761,7]
[424914543,1781268654000,-290.66668739,0.00029751,7]
[424914536,1781268654000,-491.31531237,0.00029751,7]
[424914546,1781268654000,-496.43920658,0.00029761,7]
[424914566,1781268654000,-555.38399448,0.00029761,7]
[424914524,1781268654000,-3238.550893,0.00029708,2]
[424914525,1781268654000,-502.78,0.00029746,2]
[424914526,1781268654000,-1371.2492477,0.00029749,7]
[424914527,1781268654000,-1017.3838538,0.00029749,7]
[424914528,1781268654000,-521.00624455,0.00029751,2]
[424914529,1781268654000,-228.80460318,0.00029751,7]
[424914530,1781268654000,-389.57149027,0.00029751,7]
[424914535,1781268654000,-174.88966905,0.00029751,7]
[424914531,1781268654000,-215.33960529,0.00029751,7]
[424914534,1781268654000,-345.58837053,0.00029751,7]
[424914533,1781268654000,-213.80862976,0.00029751,7]
[424914532,1781268654000,-281.49749475,0.00029751,2]
[424914537,1781268654000,-282.3219466,0.00029751,7]
[424914538,1781268654000,-337.15155664,0.00029751,7]
[424914539,1781268654000,-482.76244887,0.00029751,7]
[424914540,1781268654000,-283.48713664,0.00029751,7]
[424914541,1781268654000,-423.33561787,0.00029751,7]
[424914544,1781268654000,-249.15979285,0.00029761,2]
[424914542,1781268654000,-282.72862882,0.00029751,2]
[424914548,1781268654000,-561.13731389,0.00029761,7]
[424914547,1781268654000,-284.18254028,0.00029761,7]
[424914573,1781268654000,-866.9160475,0.00029761,7]
[424914575,1781268654000,-630.68832207,0.00029761,7]
[424914570,1781268654000,-636.50173096,0.00029761,7]
[424914600,1781268654000,-608.72780176,0.00029777,7]
[424914601,1781268654000,-238.95473346,0.00029777,7]
[424914606,1781268654000,-461.19820925,0.00029777,7]
[424914597,1781268654000,-553.02659094,0.00029777,7]
[424914605,1781268654000,-243.8363503,0.00029777,7]
[424914602,1781268654000,-462.47367108,0.00029777,7]
[424914603,1781268654000,-657.42576836,0.00029777,7]
[424914607,1781268654000,-542.58246789,0.00029777,7]
[424914604,1781268654000,-462.64394397,0.00029777,7]
[424914609,1781268654000,-420.46944076,0.00029777,7]
[424914599,1781268654000,-468.53054067,0.00029777,7]
[424914613,1781268654000,-454.33661612,0.00029777,7]
[424914611,1781268654000,-538.93540228,0.00029777,7]
[424914610,1781268654000,-472.63307814,0.00029777,7]
[424914615,1781268654000,-3049.32,0.00029822,120]
[424914618,1781268654000,-833.92535152,0.00029841,2]
[424914617,1781268654000,-151.0,0.00029841,2]
[424914614,1781268654000,-512.04006263,0.00029777,7]
[424914619,1781268654000,-7343.44906484,0.00029842,2]
[424914620,1781268654000,-500.0,0.0002987,2]
[424914568,1781268654000,-515.47332452,0.00029761,7]
[424914621,1781268654000,-1000.0,0.0002987,2]
[424914612,1781268654000,-516.68173571,0.00029777,7]
[424914608,1781268654000,-471.95009296,0.00029777,7]
[424914616,1781268654000,-668.65185756,0.00029841,2]
[424914590,1781268654000,-508.57330349,0.00029777,7]
[424914574,1781268654000,-954.71041679,0.00029761,7]
[424914576,1781268654000,-577.60227416,0.00029761,7]
[424914584,1781268654000,-215.44994373,0.00029777,7]
[424914578,1781268654000,-533.71323586,0.00029761,7]
[424914579,1781268654000,-481.21887305,0.00029761,7]
[424914580,1781268654000,-737.39151087,0.00029761,7]
[424914598,1781268654000,-483.11248368,0.00029777,7]
[424914581,1781268654000,-534.44214525,0.00029761,7]
[424914582,1781268654000,-619.24782471,0.00029761,7]
[424914583,1781268654000,-522.38894938,0.00029777,7]
[424914577,1781268654000,-521.32684079,0.00029761,7]
[424914589,1781268654000,-525.45708789,0.00029777,7]
[424914585,1781268654000,-248.78496603,0.00029777,7]
[424914591,1781268654000,-459.94318004,0.00029777,7]
[424914595,1781268654000,-493.71231662,0.00029777,7]
[424914592,1781268654000,-562.5027917,0.00029777,7]
[424914593,1781268654000,-295.487039,0.00029777,7]
[424914587,1781268654000,-606.99524877,0.00029777,7]
[424914596,1781268654000,-587.44027557,0.00029777,7]
[424914586,1781268654000,-243.3648404,0.00029777,7]
[424914588,1781268654000,-593.17472801,0.00029777,7]
[424914594,1781268654000,-358.5029444,0.00029777,2]
[424914646,1781268655000,-6399.97756269,0.000299,2]
[424914657,1781268655000,-155.12,0.0003,7]
[424914649,1781268655000,-6399.97756269,0.000299,2]
[424914648,1781268655000,-6399.97756269,0.000299,2]
[424914655,1781268655000,-241.82743976,0.0002999,2]
[424914652,1781268655000,-6399.97756269,0.000299,2]
[424914656,1781268655000,-151.0,0.00029997,7]
[424914650,1781268655000,-6399.97756269,0.000299,2]
[424914651,1781268655000,-6399.97756269,0.000299,2]
[424914667,1781268655000,-20000.0,0.0003,120]
[424914654,1781268655000,-3019.90856252,0.0002998,3]
[424914662,1781268655000,-165.61,0.0003,20]
[424914660,1781268655000,-87877.0,0.0003,2]
[424914661,1781268655000,-13196.0,0.0003,2]
[424914663,1781268655000,-321.15,0.0003,120]
[424914665,1781268655000,-1000.0,0.0003,2]
[424914664,1781268655000,-4311.1924989,0.0003,3]
[424914658,1781268655000,-11389.2187966,0.0003,2]
[424914666,1781268655000,-27020.06631424,0.0003,5]
[424914647,1781268655000,-6399.97756269,0.000299,2]
[424914653,1781268655000,-502.78,0.00029941,2]
[424914643,1781268655000,-6399.97756269,0.000299,2]
[424914634,1781268655000,-6399.97756269,0.000299,2]
[424914642,1781268655000,-6399.97756269,0.000299,2]
[424914622,1781268655000,-2000.0,0.0002987,2]